bitfinex-derivatives/quotes_BTCF0:USTF0_20240824
["timestamp","ask_amount","ask_price","bid_price","bid_amount"]
[1724490305165,0.407478,64335.0,64334.0,0.24478656]
[1724490305362,0.408478,64335.0,64334.0,0.36315887]
[1724490305558,0.408478,64335.0,64334.0,0.27315887]
[1724490305764,0.408478,64335.0,64334.0,0.15478656]
[1724490305970,0.408478,64335.0,64334.0,0.077682]
[1724490309067,0.09,64333.0,64332.0,0.07710456]
[1724490309781,0.09,64333.0,64332.0,0.15478856]
[1724490309977,0.09004,64333.0,64331.0,0.3608]
[1724490310682,4e-05,64332.0,64331.0,0.3608]
[1724490312171,0.00104,64332.0,64331.0,0.3608]
[1724490313377,0.09104,64332.0,64331.0,0.3608]
[1724490314975,0.083296,64331.0,64329.0,0.15479256]
[1724490315173,0.083296,64331.0,64330.0,0.07710456]
[1724490315874,0.00023304,64341.0,64340.0,0.077675]
[1724490316187,0.00023304,64341.0,64340.0,0.167675]
[1724490316487,0.00023304,64341.0,64340.0,0.24477956]
[1724490316670,0.09,64344.0,64343.0,0.077671]
[1724490317371,0.09,64344.0,64343.0,0.077711]
[1724490318080,0.107,64344.0,64343.0,0.077711]
[1724490318284,0.017,64344.0,64343.0,0.167711]
[1724490319288,0.017,64344.0,64343.0,0.19199591]
[1724490319681,0.017,64344.0,64343.0,0.167711]
[1724490320382,0.017,64344.0,64343.0,1.52098984]
[1724490320574,0.017,64344.0,64343.0,1.61811779]
[1724490321481,0.017,64344.0,64343.0,1.55498279]
[1724490321785,0.00023304,64350.0,64349.0,0.077664]
[1724490321988,0.173836,64349.0,64344.0,0.8551]
[1724490322190,0.085337,64349.0,64348.0,0.51613]
[1724490322378,0.085337,64349.0,64348.0,1.04238126]
[1724490322582,0.085337,64349.0,64348.0,1.50858126]
[1724490322781,0.085337,64349.0,64348.0,1.52800386]
[1724490323180,0.085337,64349.0,64348.0,1.46973541]
[1724490323385,0.085337,64349.0,64348.0,1.55973541]
[1724490323781,0.091337,64349.0,64348.0,1.55973541]
[1724490324181,0.091337,64349.0,64348.0,1.52088856]
[1724490324383,0.091337,64349.0,64348.0,1.49660802]
[1724490324578,0.091337,64349.0,64348.0,1.52088604]
[1724490327380,0.091337,64349.0,64348.0,1.47233]
[1724490327586,0.091337,64349.0,64348.0,1.52088604]
[1724490327782,0.091337,64349.0,64348.0,1.47233]
[1724490327986,0.091337,64349.0,64348.0,1.49660802]
[1724490329994,0.091337,64349.0,64348.0,1.49660801]
[1724490330592,0.091337,64349.0,64348.0,1.52088603]
[1724490332085,0.091337,64349.0,64348.0,1.52088604]
[1724490332795,0.091337,64349.0,64348.0,1.43558604]
[1724490333690,0.091337,64349.0,64348.0,1.88168604]
[1724490335002,0.091337,64349.0,64348.0,1.83313]
[1724490335290,0.091337,64349.0,64348.0,1.85740802]
[1724490335889,0.091337,64349.0,64348.0,1.83313]
[1724490336086,0.091337,64349.0,64348.0,1.49660802]
[1724490336394,0.091337,64349.0,64348.0,1.85740802]
[1724490336585,0.091337,64349.0,64348.0,1.45740802]
[1724490336786,0.088337,64349.0,64348.0,1.45740802]
[1724490337096,0.088337,64349.0,64348.0,1.85940802]
[1724490337793,0.088337,64349.0,64348.0,1.43513]
[1724490337994,0.088337,64349.0,64348.0,1.83513]
[1724490338490,0.088337,64349.0,64348.0,1.11353]
[1724490338695,0.088337,64349.0,64348.0,1.83513]
[1724490338896,0.088337,64349.0,64348.0,1.43513]
[1724490339496,0.088337,64349.0,64348.0,0.96893]
[1724490339694,0.088337,64349.0,64348.0,1.43513]
[1724490341598,0.088337,64349.0,64348.0,1.83513]
[1724490342187,0.088337,64349.0,64348.0,1.11353]
[1724490342391,0.088337,64349.0,64348.0,1.83513]
[1724490343592,0.088337,64349.0,64348.0,1.43513]
[1724490343797,0.088337,64349.0,64348.0,0.96893]
[1724490344389,0.088337,64349.0,64348.0,1.03056758]
[1724490345298,0.088337,64349.0,64348.0,0.96893]
[1724490347503,0.088337,64349.0,64348.0,0.24733]
[1724490347701,0.088337,64349.0,64348.0,0.96893]
[1724490348399,0.088337,64349.0,64348.0,1.16445456]
[1724490348608,0.088337,64349.0,64348.0,1.08725144]
[1724490351198,0.088337,64349.0,64348.0,1.10209332]
[1724490352205,0.088337,64349.0,64348.0,1.12637135]
[1724490352407,0.02397834,64363.0,64350.0,0.077662]
[1724490352608,0.02397834,64363.0,64362.0,0.889248]
[1724490352802,0.0695,64368.0,64367.0,0.077642]
[1724490353107,0.0695,64368.0,64367.0,0.167642]
[1724490353610,0.0695,64368.0,64367.0,0.167682]
[1724490354001,0.0835,64368.0,64367.0,0.168682]
[1724490354600,0.0975,64368.0,64367.0,0.169682]
[1724490355109,0.0975,64368.0,64367.0,0.530482]
[1724490356202,0.0975,64368.0,64335.0,0.36284]
[1724490356203,0.9091,64368.0,64335.0,0.36284]
[1724490356406,0.09,64336.0,64324.0,0.09]
[1724490356607,0.09,64332.0,64327.0,0.07769]
[1724490356913,0.0678,64335.0,64321.0,0.3608]
[1724490356914,0.09,64328.0,64321.0,0.3608]
[1724490357208,0.09,64330.0,64326.0,0.09]
[1724490357805,0.36103304,64331.0,64324.0,0.014]
[1724490357806,0.09,64328.0,64324.0,0.014]
[1724490358305,0.09,64328.0,64324.0,0.104]
[1724490358611,4e-05,64325.0,64324.0,0.014]
[1724490359116,4e-05,64325.0,64321.0,0.3638]
[1724490359710,0.00104,64325.0,64324.0,0.002]
[1724490359911,0.00104,64325.0,64324.0,0.00196]
[1724490360214,0.1373,64328.0,64321.0,0.3608]
[1724490360414,0.002,64325.0,64321.0,0.3628]
[1724490362005,0.001,64325.0,64321.0,0.3608]
[1724490362205,0.002,64325.0,64324.0,0.003]
[1724490362513,0.1383,64328.0,64324.0,0.003]
[1724490363108,0.1373,64328.0,64321.0,0.3608]
[1724490363304,0.00196,64325.0,64321.0,0.3608]
[1724490363912,0.001,64325.0,64321.0,0.3608]
[1724490364507,0.001,64325.0,64321.0,0.438497]
[1724490365411,0.1393,64328.0,64324.0,0.004]
[1724490365708,0.001,64325.0,64324.0,0.004]
[1724490365908,0.001,64325.0,64321.0,0.438497]
[1724490366111,0.002,64325.0,64321.0,0.442497]
[1724490366504,0.1383,64328.0,64324.0,0.004]
[1724490366708,0.1393,64328.0,64324.0,0.00396]
[1724490367117,0.001,64325.0,64321.0,0.442497]
[1724490367314,0.001,64325.0,64323.0,0.077694]
[1724490368918,0.1393,64328.0,64324.0,0.005]
[1724490369122,0.001,64325.0,64324.0,0.005]
[1724490369919,0.001,64325.0,64323.0,0.077694]
[1724490370107,0.002,64325.0,64323.0,0.082694]
[1724490370513,0.001,64325.0,64323.0,0.077694]
[1724490370720,0.002,64325.0,64324.0,0.005]
[1724490371016,0.002,64325.0,64324.0,0.00496]
[1724490372608,0.002,64325.0,64323.0,0.004]
[1724490373314,0.001,64325.0,64321.0,0.3608]
[1724490373508,0.002,64325.0,64324.0,0.004]
[1724490373910,0.001,64325.0,64323.0,0.004]
[1724490374109,0.002,64325.0,64323.0,0.004]
[1724490376025,0.001,64325.0,64321.0,0.3608]
[1724490376219,0.002,64325.0,64324.0,0.004]
[1724490376716,0.002,64325.0,64321.0,0.3608]
[1724490376927,0.002,64325.0,64323.0,0.004]
[1724490377422,0.002,64325.0,64324.0,0.004]
[1724490377813,0.440493,64325.0,64324.0,0.004]
[1724490378021,0.440493,64325.0,64318.0,0.00123304]
[1724490378022,0.3628,64325.0,64323.0,0.004]
[1724490378323,0.077694,64324.0,64323.0,0.004]
[1724490379515,0.077694,64324.0,64318.0,0.07893404]
[1724490379716,0.3568,64319.0,64318.0,0.07893404]
[1724490380327,0.3528,64319.0,64318.0,0.07893404]
[1724490380515,0.002,64324.0,64318.0,0.07893404]
[1724490380516,0.002,64324.0,64323.0,0.077695]
[1724490380919,0.002,64324.0,64318.0,0.00123304]
[1724490381124,0.3608,64319.0,64318.0,0.07893404]
[1724490381318,0.3608,64319.0,64318.0,0.08293404]
[1724490381319,0.36176,64319.0,64318.0,0.08293404]
[1724490382330,0.36176,64319.0,64318.0,0.00523304]
[1724490382928,0.36176,64319.0,64318.0,0.00123304]
[1724490383531,0.36276,64319.0,64318.0,0.00123304]
[1724490383923,0.002,64319.0,64318.0,0.00123304]
[1724490387333,0.002,64319.0,64318.0,0.07859924]
[1724490387529,0.002,64319.0,64318.0,0.00123304]
[1724490387729,0.002,64319.0,64318.0,0.07859924]
[1724490387927,0.002,64319.0,64318.0,0.00123304]
[1724490388635,0.002,64319.0,64318.0,0.07859924]
[1724490389329,0.002,64319.0,64318.0,0.00123304]
[1724490391035,0.00204,64319.0,64318.0,0.00123304]
[1724490398936,0.00204,64319.0,64318.0,0.07859924]
[1724490399540,0.00204,64319.0,64318.0,0.00123304]
[1724490399735,0.07974,64319.0,64318.0,0.00123304]
[1724490400142,0.07874,64319.0,64318.0,0.07859924]
[1724490400337,0.07974,64319.0,64318.0,0.00123304]
[1724490402441,0.16974,64319.0,64318.0,0.00123304]
[1724490403750,0.53054,64319.0,64318.0,0.00123304]
[1724490404655,0.53054,64319.0,64318.0,0.19700622]
[1724490404848,0.53054,64319.0,64318.0,0.19699883]
[1724490405245,0.53054,64319.0,64318.0,0.11963263]
[1724490406452,0.53054,64319.0,64318.0,0.11973263]
[1724490406852,0.53054,64319.0,64318.0,0.14372425]
[1724490407557,0.49167009,64319.0,64318.0,0.14372425]
[1724490407851,0.49167009,64319.0,64318.0,0.02532466]
[1724490408945,0.49167009,64319.0,64318.0,0.02432466]
[1724490409141,0.49167009,64319.0,64318.0,0.02536466]
[1724490410851,0.49167009,64319.0,64318.0,0.14376381]
[1724490411051,0.49167009,64319.0,64318.0,0.14376355]
[1724490411356,0.13087009,64319.0,64318.0,0.14376355]
[1724490411852,0.13087009,64319.0,64318.0,0.16805747]
[1724490412651,0.13087009,64319.0,64318.0,0.16805744]
[1724490414752,0.13087009,64319.0,64318.0,0.16805745]
[1724490414954,0.13087009,64319.0,64318.0,0.1197719]
[1724490415154,0.12987009,64319.0,64318.0,0.14406583]
[1724490415353,0.12987009,64319.0,64318.0,0.1197719]
[1724490415546,0.12987009,64319.0,64318.0,0.19732785]
[1724490415751,0.12987009,64319.0,64318.0,0.00137304]
[1724490417963,0.49067009,64319.0,64318.0,0.00137304]
[1724490420160,0.12987009,64319.0,64318.0,0.00137304]
[1724490420460,0.49067009,64319.0,64318.0,0.00137304]
[1724490422262,0.49067009,64319.0,64318.0,0.02566864]
[1724490422461,0.12987009,64319.0,64318.0,0.00137304]
[1724490422761,0.49067009,64319.0,64318.0,0.02566864]
[1724490422956,0.49067009,64319.0,64318.0,0.04996424]
[1724490425359,0.49067009,64319.0,64318.0,0.02566864]
[1724490425552,0.49067009,64319.0,64318.0,0.04996424]
[1724490426160,0.49067009,64319.0,64318.0,0.02566864]
[1724490426361,0.49067009,64319.0,64318.0,0.00137304]
[1724490426561,0.56837109,64319.0,64318.0,0.00137304]
[1724490426958,0.56837109,64319.0,64318.0,0.02566933]
[1724490427164,0.56837109,64319.0,64318.0,0.00137304]
[1724490428265,0.56837109,64319.0,64318.0,0.02566943]
[1724490428563,0.56837109,64319.0,64318.0,0.00137304]
[1724490428966,0.56837109,64319.0,64318.0,0.06339498]
[1724490429761,0.40067009,64319.0,64318.0,0.06339498]
[1724490429970,0.49067009,64319.0,64318.0,0.00137304]
[1724490430559,0.49067009,64319.0,64318.0,0.02566908]
[1724490430961,0.49067009,64319.0,64318.0,0.02566916]
[1724490431372,0.49067009,64319.0,64318.0,0.00137304]
[1724490433466,0.49067009,64319.0,64318.0,0.02566917]
[1724490433668,0.49067009,64319.0,64318.0,0.08767138]
[1724490433874,0.49067009,64319.0,64318.0,0.0876724]
[1724490434172,0.49067009,64319.0,64318.0,0.00137304]
[1724490434974,0.56837109,64319.0,64318.0,0.00137304]
[1724490435366,0.49067009,64319.0,64318.0,0.00137304]
[1724490436376,0.56837109,64319.0,64318.0,0.00137304]
[1724490436769,0.56837109,64319.0,64318.0,0.02567062]
[1724490437472,0.56837109,64319.0,64318.0,0.00137304]
[1724490441178,0.92917109,64319.0,64318.0,0.00137304]
[1724490441578,0.92917109,64319.0,64311.0,0.00016564]
[1724490441579,0.155416,64314.0,64311.0,0.00016564]
[1724490441781,0.3608,64312.0,64308.0,0.04650721]
[1724490441979,0.15543,64308.0,64307.0,0.04650721]
[1724490442169,1.43543,64308.0,64307.0,0.04650721]
[1724490442480,1.43543,64308.0,64297.0,0.1463]
[1724490442481,0.155432,64307.0,64306.0,0.04650721]
[1724490442680,0.245432,64307.0,64306.0,0.04650721]
[1724490443183,1.435432,64307.0,64306.0,0.04650721]
[1724490443376,0.077717,64306.0,64305.0,0.04650721]
[1724490443683,0.167717,64306.0,64305.0,0.04650721]
[1724490443881,0.077719,64305.0,64304.0,0.04650721]
[1724490444076,0.528519,64305.0,64304.0,0.04650721]
[1724490444279,0.4508,64305.0,64302.0,0.04650721]
[1724490444580,0.09,64303.0,64302.0,0.04650721]
[1724490444976,0.09,64303.0,64297.0,0.04647039]
[1724490444977,0.077725,64300.0,64297.0,0.04647039]
[1724490445179,0.438527,64298.0,64296.0,0.04647039]
[1724490445378,0.09,64297.0,64293.0,0.04647039]
[1724490445583,0.4508,64294.0,64293.0,0.04647039]
[1724490445975,0.528532,64294.0,64292.0,0.04647039]
[1724490446278,0.077734,64292.0,64288.0,0.0869034]
[1724490446484,0.077734,64292.0,64288.0,0.06196052]
[1724490446883,0.077734,64292.0,64289.0,0.06196052]
[1724490447082,0.09,64290.0,64289.0,0.06196052]
[1724490447278,0.09,64290.0,64288.0,0.06196052]
[1724490448578,0.091,64290.0,64287.0,0.15196052]
[1724490449185,0.092,64290.0,64287.0,0.15196052]
[1724490449484,0.002,64290.0,64287.0,0.15196052]
[1724490449685,4e-05,64288.0,64287.0,0.15196052]
[1724490451277,0.00104,64288.0,64287.0,0.09]
[1724490451776,0.00204,64288.0,64287.0,0.09]
[1724490452185,0.00204,64288.0,64287.0,0.22970052]
[1724490452383,0.00204,64288.0,64287.0,0.16774]
[1724490452583,0.167734,64292.0,64287.0,0.16774]
[1724490452780,0.167734,64292.0,64290.0,0.04637451]
[1724490453488,0.528534,64292.0,64290.0,0.04637451]
[1724490454274,0.529534,64292.0,64289.0,0.04637451]
[1724490454479,0.4518,64292.0,64289.0,0.04637451]
[1724490454983,0.4528,64292.0,64289.0,0.04637451]
[1724490456375,0.4528,64292.0,64290.0,0.04637451]
[1724490456585,0.4528,64292.0,64289.0,0.04637451]
[1724490458184,0.4518,64292.0,64290.0,0.04637451]
[1724490458489,0.4528,64292.0,64290.0,0.04637451]
[1724490459278,0.4528,64292.0,64289.0,0.04637451]
[1724490459987,4e-05,64290.0,64289.0,0.04637451]
[1724490460490,4e-05,64290.0,64288.0,0.077739]
[1724490461080,4e-05,64290.0,64287.0,0.09004]
[1724490461081,0.00104,64290.0,64289.0,0.09]
[1724490461282,0.00104,64290.0,64289.0,0.96868247]
[1724490461488,0.001,64290.0,64289.0,1.05868247]
[1724490461884,0.3618,64292.0,64291.0,0.077736]
[1724490462092,0.3618,64292.0,64291.0,0.10204047]
[1724490462288,0.3618,64292.0,64291.0,0.10203918]
[1724490462488,0.3608,64292.0,64291.0,0.077736]
[1724490463281,0.3618,64292.0,64291.0,0.077736]
[1724490464184,0.3628,64292.0,64291.0,0.077736]
[1724490464884,0.002,64292.0,64291.0,0.077736]
[1724490468389,0.002,64292.0,64291.0,0.27372909]
[1724490468590,0.002,64292.0,64291.0,0.15528376]
[1724490468991,0.002,64292.0,64291.0,0.2737291]
[1724490469192,0.002,64292.0,64291.0,0.1959931]
[1724490469391,0.002,64292.0,64291.0,0.07746874]
[1724490469593,0.002,64292.0,64290.0,0.07746874]
[1724490470288,0.002,64292.0,64291.0,0.11840628]
[1724490471191,0.002,64292.0,64290.0,0.077737]
[1724490472091,0.001,64292.0,64290.0,0.077737]
[1724490472291,0.002,64292.0,64291.0,0.077736]
[1724490473099,0.001,64292.0,64291.0,0.077736]
[1724490473300,0.002,64292.0,64291.0,0.077736]
[1724490473993,0.002,64292.0,64291.0,0.17057544]
[1724490474800,0.001,64292.0,64291.0,0.17057544]
[1724490474995,0.002,64292.0,64291.0,0.167736]
[1724490475687,0.0763,64292.0,64291.0,0.167736]
[1724490476195,0.0763,64292.0,64291.0,0.077736]
[1724490478502,0.0763,64292.0,64291.0,0.167736]
[1724490481596,0.0763,64292.0,64291.0,0.19203967]
[1724490481793,0.0763,64292.0,64291.0,0.10203967]
[1724490481999,0.244034,64292.0,64291.0,0.02430367]
[1724490482297,0.244034,64292.0,64291.0,0.02430436]
[1724490482504,0.244034,64292.0,64289.0,0.09]
[1724490482699,0.244034,64292.0,64290.0,0.02430457]
[1724490482899,0.244034,64292.0,64289.0,0.09]
[1724490483201,0.244034,64292.0,64290.0,0.02430457]
[1724490483405,0.244034,64292.0,64291.0,0.02430457]
[1724490483799,0.077738,64289.0,64288.0,0.00012]
[1724490484095,0.52869369,64289.0,64288.0,0.00012]
[1724490484497,0.52873369,64289.0,64288.0,0.00012]
[1724490486201,0.52973369,64289.0,64288.0,0.00012]
[1724490486399,0.53073369,64289.0,64288.0,0.00012]
[1724490486701,0.99737369,64289.0,64288.0,0.00012]
[1724490487297,0.99737369,64289.0,64288.0,0.02442762]
[1724490487599,0.99737369,64289.0,64288.0,0.06216103]
[1724490487995,0.99737369,64289.0,64288.0,0.00012]
[1724490488191,0.53073369,64289.0,64288.0,0.00012]
[1724490488391,0.53073369,64289.0,64288.0,0.06216103]
[1724490489517,0.53073369,64289.0,64288.0,0.00012]
[1724490494602,0.91963569,64289.0,64284.0,0.06204103]
[1724490494910,0.44073369,64289.0,64288.0,0.04651126]
[1724490495308,0.90737369,64289.0,64288.0,0.04651126]
[1724490495609,2.49737369,64289.0,64288.0,0.04651126]
[1724490496308,0.077739,64288.0,64287.0,0.04651126]
[1724490496518,0.167739,64288.0,64287.0,0.04651126]
[1724490496704,1.034379,64288.0,64287.0,0.04651126]
[1724490497104,1.395179,64288.0,64287.0,0.04651126]
[1724490497615,1.397179,64288.0,64287.0,0.04651126]
[1724490498012,1.036379,64288.0,64287.0,0.04651126]
[1724490498208,1.397179,64288.0,64287.0,0.04651126]
[1724490498409,0.07774,64287.0,64286.0,0.04651126]
[1724490498610,0.23994,64287.0,64286.0,0.04651126]
[1724490498807,1.10662,64287.0,64286.0,0.04651126]
[1724490499114,1.01662,64287.0,64286.0,0.04651126]
[1724490499309,0.23994,64287.0,64286.0,0.04651126]
[1724490499615,0.24094,64287.0,64286.0,0.04651126]
[1724490499818,0.24194,64287.0,64286.0,0.04651126]
[1724490500015,0.24194,64287.0,64281.0,0.077747]
[1724490500016,0.077744,64285.0,64283.0,0.06204103]
[1724490500215,0.077744,64284.0,64283.0,0.06199662]
[1724490500516,0.167744,64284.0,64283.0,0.06199662]
[1724490501315,0.528544,64284.0,64283.0,0.06199662]
[1724490502919,0.530544,64284.0,64283.0,0.06199662]
[1724490503111,0.530584,64284.0,64283.0,0.06199662]
[1724490503512,0.530584,64284.0,64282.0,0.077746]
[1724490504222,0.36284,64284.0,64283.0,0.1996776]
[1724490504528,0.3628,64284.0,64283.0,0.137705]
[1724490504918,0.3628,64284.0,64283.0,0.289905]
[1724490505119,0.002,64284.0,64283.0,0.289905]
[1724490505320,0.00015569,64289.0,64287.0,0.07774]
[1724490505521,0.00015569,64289.0,64288.0,0.06197227]
[1724490505821,0.09015569,64289.0,64287.0,0.07774]
[1724490506523,0.09115569,64289.0,64287.0,0.07774]
[1724490506722,0.09215569,64289.0,64287.0,0.07774]
[1724490509226,0.00215569,64289.0,64288.0,0.167739]
[1724490509422,0.00215569,64289.0,64288.0,0.077739]
[1724490509627,0.09215569,64289.0,64288.0,0.077739]
[1724490510428,0.09215569,64289.0,64288.0,0.078739]
[1724490511322,0.16989369,64289.0,64288.0,0.001]
[1724490513428,0.53069369,64289.0,64288.0,0.001]
[1724490513630,0.57840883,64289.0,64288.0,0.001]
[1724490516126,0.53069369,64289.0,64288.0,0.001]
[1724490516436,0.16989369,64289.0,64288.0,0.001]
[1724490516623,0.53069369,64289.0,64288.0,0.001]
[1724490521930,0.16989369,64289.0,64288.0,0.001]
[1724490522137,0.53069369,64289.0,64288.0,0.001]
[1724490526330,0.00215569,64289.0,64288.0,0.078738]
[1724490526535,0.00215569,64289.0,64288.0,0.19719378]
[1724490527332,0.00215569,64289.0,64288.0,0.078738]
[1724490527537,0.00215569,64289.0,64288.0,0.19719029]
[1724490527938,0.00215569,64289.0,64288.0,0.22149517]
[1724490529139,0.00215569,64289.0,64288.0,0.14957015]
[1724490532538,0.00215569,64289.0,64288.0,0.17075989]
[1724490532844,0.00215569,64289.0,64288.0,0.19506477]
[1724490533143,0.00215569,64289.0,64288.0,0.18742531]
[1724490533844,0.00215569,64289.0,64288.0,0.19506349]
[1724490534234,0.09215569,64289.0,64288.0,0.18742531]
[1724490534549,0.09215569,64289.0,64288.0,0.19506556]
[1724490534745,0.09215569,64289.0,64288.0,0.1485375]
[1724490534943,0.09215569,64289.0,64288.0,0.12734776]
[1724490535440,0.16989269,64289.0,64288.0,0.02530603]
[1724490535639,0.16989269,64289.0,64288.0,0.04961206]
[1724490536140,0.16989269,64289.0,64288.0,0.12715751]
[1724490536739,0.16989269,64289.0,64288.0,0.1028515]
[1724490536945,0.16989269,64289.0,64288.0,0.12715755]
[1724490537653,0.16989269,64289.0,64288.0,0.001]
[1724490537844,0.16989269,64289.0,64288.0,0.04961241]
[1724490538743,0.16989269,64289.0,64288.0,0.02530622]
[1724490538951,0.16989269,64289.0,64288.0,0.04961244]
[1724490539636,0.16989269,64289.0,64288.0,0.001]
[1724490539844,0.16989269,64289.0,64288.0,0.02530622]
[1724490540642,0.16989269,64289.0,64288.0,0.001]
[1724490542448,0.16989269,64289.0,64288.0,0.02530738]
[1724490543343,0.53069269,64289.0,64288.0,0.02530738]
[1724490544642,0.53069269,64289.0,64288.0,0.001]
[1724490545542,0.16774,64286.0,64285.0,0.02863872]
[1724490545851,0.16774,64286.0,64285.0,0.07725356]
[1724490546246,0.16778,64286.0,64285.0,0.04861484]
[1724490546939,0.16878,64286.0,64285.0,0.04861484]
[1724490547748,0.16978,64286.0,64285.0,0.04861484]
[1724490548048,0.07978,64286.0,64285.0,0.02430742]
[1724490548238,0.00204,64286.0,64285.0,0.10204842]
[1724490548439,0.00204,64286.0,64285.0,0.24528645]
[1724490548744,0.00204,64286.0,64285.0,0.36374877]
[1724490548945,0.00204,64286.0,64285.0,0.41236257]
[1724490549252,0.00204,64286.0,64285.0,0.29390025]
[1724490550239,0.00204,64286.0,64285.0,0.1920479]
[1724490550446,0.00204,64286.0,64285.0,0.21635513]
[1724490550752,0.00204,64286.0,64285.0,0.12635513]
[1724490550947,0.00204,64286.0,64285.0,0.21635513]
[1724490551649,0.00204,64286.0,64285.0,0.12635546]
[1724490551857,0.077742,64285.0,64282.0,4e-05]
[1724490552046,0.09,64283.0,64282.0,4e-05]
[1724490552240,0.09,64283.0,64282.0,0.04865479]
[1724490552447,0.09,64283.0,64282.0,0.02434763]
[1724490552643,0.077784,64283.0,64282.0,0.04865526]
[1724490552849,0.167784,64283.0,64282.0,4e-05]
[1724490553068,0.077784,64283.0,64282.0,4e-05]
[1724490553249,4e-05,64283.0,64282.0,0.167785]
[1724490554151,0.00104,64283.0,64282.0,0.167785]
[1724490554348,0.00104,64283.0,64282.0,0.077785]
[1724490554744,0.00204,64283.0,64282.0,0.077785]
[1724490555146,0.00204,64283.0,64282.0,0.10209395]
[1724490555547,0.00204,64283.0,64282.0,0.077785]
[1724490555755,0.00204,64283.0,64282.0,0.1264029]
[1724490555952,0.00204,64283.0,64282.0,0.10209395]
[1724490556556,0.36284,64283.0,64282.0,0.10209395]
[1724490556756,0.00204,64283.0,64282.0,0.10209395]
[1724490556953,0.36284,64283.0,64282.0,0.10209395]
[1724490558952,0.36284,64283.0,64282.0,0.10209396]
[1724490560560,0.36284,64283.0,64282.0,0.077785]
[1724490561367,0.440584,64283.0,64282.0,4e-05]
[1724490562664,0.36284,64283.0,64282.0,0.10209408]
[1724490562963,0.07789269,64289.0,64283.0,0.077743]
[1724490563167,0.07789269,64289.0,64288.0,0.09]
[1724490563761,0.07789269,64289.0,64288.0,0.09004]
[1724490564262,0.07889269,64289.0,64288.0,0.09004]
[1724490565055,0.07989269,64289.0,64288.0,4e-05]
[1724490565261,0.07889269,64289.0,64288.0,4e-05]
[1724490565569,0.07989269,64289.0,64288.0,4e-05]
[1724490567062,0.07989269,64289.0,64288.0,0.09004]
[1724490569258,0.44069269,64289.0,64288.0,0.09004]
[1724490570562,0.44069269,64289.0,64288.0,0.11434728]
[1724490570961,0.44069269,64289.0,64288.0,0.09004]
[1724490571467,0.53069269,64289.0,64288.0,4e-05]
[1724490577067,0.44069269,64289.0,64288.0,4e-05]
[1724490578979,0.07989269,64289.0,64288.0,4e-05]
[1724490579275,0.44069269,64289.0,64288.0,4e-05]
[1724490579470,0.44069269,64289.0,64288.0,0.01804]
[1724490580766,0.44069269,64289.0,64288.0,0.04234734]
[1724490580966,0.36295569,64289.0,64288.0,0.04234734]
[1724490581167,0.00023322,64299.0,64288.0,0.04234734]
[1724490581373,0.077729,64296.0,64293.0,0.077731]
[1724490581578,0.077729,64296.0,64288.0,0.01804]
[1724490581579,0.077729,64296.0,64295.0,0.077729]
[1724490581969,0.077729,64296.0,64295.0,0.167729]
[1724490582665,0.078729,64296.0,64295.0,0.167729]
[1724490583268,0.001,64296.0,64295.0,0.167729]
[1724490584679,0.001,64296.0,64295.0,0.19203398]
[1724490584871,0.001,64296.0,64295.0,0.167729]
[1724490590469,0.04871069,64296.0,64295.0,0.167729]
[1724490591179,0.04871069,64296.0,64295.0,0.077729]
[1724490591573,0.077729,64295.0,64294.0,0.02488]
[1724490591774,0.12543969,64295.0,64294.0,0.02488]
[1724490592778,0.18218925,64295.0,64294.0,0.02588]
[1724490593277,0.25888925,64295.0,64294.0,0.02588]
[1724490594275,0.61968925,64295.0,64294.0,0.02588]
[1724490594781,0.516229,64295.0,64294.0,0.02588]
[1724490601086,0.877029,64295.0,64294.0,0.02588]
[1724490603384,0.800329,64295.0,64294.0,0.02588]
[1724490605880,0.078729,64295.0,64294.0,0.02588]
[1724490606083,0.800329,64295.0,64294.0,0.02588]
[1724490606985,0.078729,64295.0,64294.0,0.02588]
[1724490607180,0.800329,64295.0,64294.0,0.02588]
[1724490607381,0.39374361,64295.0,64294.0,0.02588]
[1724490607788,0.438529,64295.0,64294.0,0.02588]
[1724490609084,0.528529,64295.0,64294.0,0.02588]
[1724490610285,0.167729,64295.0,64294.0,0.02588]
[1724490610494,0.528529,64295.0,64294.0,0.02588]
[1724490612396,0.167729,64295.0,64294.0,0.02588]
[1724490612897,0.528529,64295.0,64294.0,0.02588]
[1724490617297,0.167729,64295.0,64294.0,0.02588]
[1724490617591,0.528529,64295.0,64294.0,0.02588]
[1724490619095,0.167729,64295.0,64294.0,0.02588]
[1724490619997,0.528529,64295.0,64294.0,0.02588]
[1724490620692,0.167729,64295.0,64294.0,0.02588]
[1724490621395,0.531529,64295.0,64294.0,0.02588]
[1724490621595,0.57924414,64295.0,64294.0,0.02588]
[1724490621893,0.57924414,64295.0,64294.0,0.02688]
[1724490622297,0.21844414,64295.0,64294.0,0.02688]
[1724490622494,0.2741989,64295.0,64294.0,0.02688]
[1724490622704,0.6349989,64295.0,64294.0,0.02688]
[1724490623091,0.2741989,64295.0,64294.0,0.02688]
[1724490623289,0.6349989,64295.0,64294.0,0.02688]
[1724490625700,0.531529,64295.0,64294.0,0.02688]
[1724490627291,0.531529,64295.0,64294.0,0.08891854]
[1724490628094,0.170729,64295.0,64294.0,0.08891854]
[1724490628495,0.531529,64295.0,64294.0,0.08891854]
[1724490628699,0.531529,64295.0,64294.0,0.02688]
[1724490629694,0.077737,64289.0,64288.0,4e-05]
[1724490629891,0.438537,64289.0,64288.0,4e-05]
[1724490630398,0.438577,64289.0,64288.0,4e-05]
[1724490630595,0.518377,64289.0,64288.0,4e-05]
[1724490630799,0.599277,64289.0,64288.0,4e-05]
[1724490631700,0.238477,64289.0,64288.0,4e-05]
[1724490631906,0.600277,64289.0,64288.0,4e-05]
[1724490632904,0.600277,64289.0,64287.0,0.01522]
[1724490633201,0.155477,64288.0,64287.0,0.01522]
[1724490633600,0.155517,64288.0,64287.0,0.01522]